bitfinex-derivatives/quotes_ETHF0:USTF0_20250602
["timestamp","ask_amount","ask_price","bid_price","bid_amount"]
[1748826455162,21.5207756,2539.1,2539.0,0.50591168]
[1748826455359,21.30653711,2539.1,2539.0,0.50591168]
[1748826455559,21.52126274,2539.1,2539.0,0.50591168]
[1748826455757,21.30701092,2539.1,2539.0,0.50591168]
[1748826455960,24.51481092,2539.1,2539.0,0.50591168]
[1748826456362,24.72905473,2539.1,2539.0,0.50591168]
[1748826457062,24.72903867,2539.1,2539.0,0.50591168]
[1748826457664,24.72904198,2539.1,2539.0,0.50591168]
[1748826458165,24.72903726,2539.1,2539.0,0.50591168]
[1748826458770,24.72903322,2539.1,2539.0,0.50591168]
[1748826459063,24.51381092,2539.1,2539.0,0.50591168]
[1748826459361,24.72803515,2539.1,2539.0,0.50591168]
[1748826459664,24.51381092,2539.1,2539.0,0.50591168]
[1748826459866,24.72803511,2539.1,2539.0,0.50591168]
[1748826460065,6.68639417,2539.1,2539.0,0.50591168]
[1748826460264,24.7283833,2539.1,2539.0,0.50591168]
[1748826461065,24.72839034,2539.1,2539.0,0.50591168]
[1748826461265,24.51417067,2539.1,2539.0,0.50591168]
[1748826461874,6.47217067,2539.1,2539.0,0.50591168]
[1748826462057,24.72839196,2539.1,2539.0,0.50591168]
[1748826462263,24.72839607,2539.1,2539.0,0.50591168]
[1748826462463,24.72839881,2539.1,2539.0,0.00591168]
[1748826462665,24.72839801,2539.1,2539.0,0.00591168]
[1748826463272,29.72840668,2539.1,2539.0,0.00591168]
[1748826463568,0.7875,2538.5,2538.4,3.856]
[1748826464164,1.92919506,2538.5,2538.4,3.856]
[1748826464361,1.92891176,2538.5,2538.4,4.356]
[1748826464564,0.7875,2538.5,2538.4,5.14353]
[1748826465269,18.82949,2538.6,2538.5,0.7875]
[1748826465469,0.00587199,2538.7,2538.6,0.78747]
[1748826465661,3.27849789,2539.1,2539.0,0.78734]
[1748826465866,4.41948767,2539.1,2539.0,4.64334]
[1748826466066,1.21168767,2539.1,2539.0,4.64334]
[1748826466266,0.07069789,2539.1,2539.0,4.64334]
[1748826466771,0.07069789,2539.1,2539.0,5.95744]
[1748826468171,0.07069789,2539.1,2539.0,46.75744]
[1748826468577,0.85800789,2539.1,2539.0,46.75744]
[1748826468769,0.85800789,2539.1,2539.0,5.95744]
[1748826469073,1.99880908,2539.1,2539.0,5.95744]
[1748826469763,1.21149908,2539.1,2539.0,5.95744]
[1748826470875,0.07069789,2539.1,2539.0,5.95744]
[1748826473279,1.21153238,2539.1,2539.0,5.95744]
[1748826473471,1.21153874,2539.1,2539.0,5.95744]
[1748826477378,0.07069789,2539.1,2539.0,5.95744]
[1748826477575,1.21152451,2539.1,2539.0,5.95744]
[1748826477774,1.21152451,2539.1,2539.0,6.45744]
[1748826478374,1.4257055,2539.1,2539.0,6.45744]
[1748826478678,1.42570804,2539.1,2539.0,6.45744]
[1748826478979,1.21152451,2539.1,2539.0,6.45744]
[1748826479478,1.42569373,2539.1,2539.0,6.45744]
[1748826479679,1.21152451,2539.1,2539.0,6.45744]
[1748826480868,0.85800789,2539.1,2539.0,1.8141]
[1748826481074,0.07069789,2539.1,2539.0,6.45544]
[1748826481266,1.21126443,2539.1,2539.0,6.45544]
[1748826482175,1.42538967,2539.1,2539.0,6.45544]
[1748826482579,1.42539452,2539.1,2539.0,6.45544]
[1748826483280,1.42539895,2539.1,2539.0,6.45544]
[1748826483584,1.42539839,2539.1,2539.0,6.45544]
[1748826483776,1.42540151,2539.1,2539.0,6.45544]
[1748826483976,1.42540116,2539.1,2539.0,6.45544]
[1748826484580,0.28481302,2539.1,2539.0,6.45544]
[1748826484976,1.42540208,2539.1,2539.0,6.45544]
[1748826485179,1.21128694,2539.1,2539.0,6.45544]
[1748826485482,1.42540206,2539.1,2539.0,6.45544]
[1748826486075,2.21271206,2539.1,2539.0,6.45544]
[1748826486380,1.42540347,2539.1,2539.0,6.45544]
[1748826486785,1.21128694,2539.1,2539.0,6.45544]
[1748826489091,1.21132625,2539.1,2539.0,6.45544]
[1748826492492,1.21132625,2539.1,2539.0,5.95544]
[1748826492894,1.21132625,2539.1,2539.0,6.45544]
[1748826493392,0.07069789,2539.1,2539.0,6.45544]
[1748826494288,1.21169205,2539.1,2539.0,6.45544]
[1748826495187,1.21332697,2539.1,2539.0,9.66324]
[1748826495386,1.21334638,2539.1,2539.0,9.66324]
[1748826495782,1.21334638,2539.1,2539.0,6.45544]
[1748826497690,0.07069789,2539.1,2539.0,5.14134]
[1748826497890,1.24296626,2539.1,2539.0,5.14134]
[1748826498892,1.24296626,2539.1,2539.0,8.34914]
[1748826500788,1.24296626,2539.1,2539.0,5.14134]
[1748826501397,1.24296626,2539.1,2539.0,8.34914]
[1748826502206,1.44949,2539.5,2539.4,0.78722]
[1748826502501,2.61862182,2539.5,2539.4,0.78722]
[1748826502702,1.83143182,2539.5,2539.4,0.78722]
[1748826502902,19.86643182,2539.5,2539.4,0.78722]
[1748826503104,20.65362182,2539.5,2539.4,0.78722]
[1748826503804,2.04593807,2539.5,2539.4,4.64122]
[1748826504100,1.16913182,2539.5,2539.4,4.64122]
[1748826504610,1.16913182,2539.5,2539.4,5.91972]
[1748826505300,18.035,2539.7,2539.6,0.78716]
[1748826505606,19.9809,2539.8,2539.7,0.78713]
[1748826505896,21.14924883,2539.8,2539.7,0.78713]
[1748826506300,21.14885497,2539.8,2539.7,0.78713]
[1748826506502,21.36333779,2539.8,2539.7,0.78713]
[1748826506696,22.15042779,2539.8,2539.7,0.78713]
[1748826506902,22.15042792,2539.8,2539.7,0.78713]
[1748826507095,21.36311932,2539.8,2539.7,0.78713]
[1748826507293,21.36311647,2539.8,2539.7,0.78713]
[1748826507500,3.11485497,2539.8,2539.7,0.78713]
[1748826507802,3.32911838,2539.8,2539.7,1.28713]
[1748826508005,3.11485497,2539.8,2539.7,1.28713]
[1748826508398,4.11607018,2539.8,2539.7,0.5]
[1748826508591,3.90194497,2539.8,2539.7,0.5]
[1748826508799,4.11605505,2539.8,2539.7,1.28713]
[1748826509000,3.90194497,2539.8,2539.7,1.28713]
[1748826510302,3.90194497,2539.8,2539.7,0.5]
[1748826510802,3.9007499,2539.8,2539.7,0.5]
[1748826511207,3.9007499,2539.8,2539.7,1.28713]
[1748826511503,3.1136599,2539.8,2539.7,1.28713]
[1748826511905,3.9007499,2539.8,2539.7,0.5]
[1748826512406,3.9007499,2539.8,2539.7,1.28713]
[1748826514107,3.1136599,2539.8,2539.7,1.28713]
[1748826514306,3.18435779,2539.8,2539.7,1.28713]
[1748826514607,3.97144779,2539.8,2539.7,1.28713]
[1748826514904,0.74959789,2539.8,2539.7,1.28713]
[1748826515105,1.91596715,2539.8,2539.7,1.28713]
[1748826515306,2.70305715,2539.8,2539.7,0.5]
[1748826515500,3.95955715,2539.8,2539.7,0.5]
[1748826515906,3.95955715,2539.8,2539.7,1.28713]
[1748826516106,3.17246715,2539.8,2539.7,1.28713]
[1748826516907,3.95955715,2539.8,2539.7,1.28713]
[1748826519110,1.23706715,2539.8,2539.7,1.28713]
[1748826519312,1.23697891,2539.8,2539.7,3.28723]
[1748826520012,5.11505044,2540.4,2539.7,3.28723]
[1748826520013,1.63945657,2540.4,2539.8,1.96768]
[1748826520312,0.6455,2540.6,2540.5,0.78688]
[1748826520515,0.6328,2540.8,2540.7,0.78682]
[1748826522822,1.41958,2540.8,2540.7,1.28682]
[1748826523322,1.41958,2540.8,2540.7,0.5]
[1748826524819,1.6334979,2540.8,2540.7,0.5]
[1748826525125,1.41958,2540.8,2540.7,0.5]
[1748826525823,19.44558,2540.8,2540.7,1.28682]
[1748826526622,18.87272194,2540.8,2540.7,1.28682]
[1748826526819,18.23792194,2540.8,2540.7,1.28682]
[1748826527023,18.024,2540.8,2540.7,2.66272]
[1748826527719,2.0114,2541.0,2540.7,1.8759]
[1748826527923,20.82213,2541.0,2540.9,0.78675]
[1748826528126,0.6265,2541.2,2541.1,0.78669]
[1748826528323,0.7867,2541.1,2541.0,0.78671]
[1748826529618,0.78672,2541.0,2540.9,1.41905168]
[1748826530028,0.78671,2541.1,2541.0,0.78672]
[1748826530323,0.78672,2541.0,2540.9,1.41905168]
[1748826531121,0.78672,2541.0,2540.9,0.63231168]
[1748826531327,0.78672,2541.0,2540.9,0.00591168]
[1748826531729,2.04122,2541.0,2540.9,0.00591168]
[1748826533030,3.19279354,2541.0,2540.9,0.00591168]
[1748826533727,2.04122,2541.0,2540.9,0.00591168]
[1748826535624,2.04122,2541.0,2540.9,0.79266168]
[1748826536127,2.04122,2541.0,2540.9,0.00591168]
[1748826536923,7.04122,2541.0,2540.9,0.00591168]
[1748826537225,20.06122,2541.0,2540.9,0.00591168]
[1748826537821,2.04122,2541.0,2540.9,0.00591168]
[1748826538028,20.06122,2541.0,2540.9,0.00591168]
[1748826538228,20.06122,2541.0,2540.9,0.50591168]
[1748826538731,20.06122,2541.0,2540.9,1.29266168]
[1748826539431,3.99451,2541.1,2541.0,0.78672]
[1748826539628,3.2078,2541.1,2541.0,1.41142]
[1748826540131,3.99449,2541.1,2541.0,2.76912]
[1748826540323,3.99449,2541.1,2540.9,0.50591168]
[1748826540528,0.78672,2541.0,2540.9,1.29264168]
[1748826540726,5.29012,2541.1,2541.0,0.78672]
[1748826541827,5.29012,2541.1,2540.9,0.50591168]
[1748826542033,2.11112,2541.0,2540.9,0.50591168]
[1748826542230,19.3434,2541.0,2540.9,1.29266168]
[1748826542533,20.13012,2541.0,2540.9,1.29266168]
[1748826542833,2.11112,2541.0,2540.9,1.29266168]
[1748826543133,0.6265,2541.2,2541.1,0.78669]
[1748826543329,2.56601123,2541.2,2541.1,0.78669]
[1748826543632,0.84057818,2541.2,2541.1,0.78669]
[1748826543835,0.6265,2541.2,2541.1,0.78669]
[1748826544531,22.01341,2541.4,2541.3,0.78663]
[1748826544727,22.01341,2541.4,2541.2,0.78664]
[1748826544728,0.78664,2541.3,2541.2,0.78664]
[1748826545033,3.2078,2541.4,2541.3,0.78663]
[1748826545636,3.2078,2541.4,2541.3,4.63263]
[1748826546136,3.2078,2541.4,2541.3,45.43263]
[1748826546530,3.2078,2541.7,2541.6,0.78654]
[1748826547236,3.863,2542.0,2541.9,0.78644]
[1748826547436,4.36131981,2542.0,2541.9,0.78644]
[1748826547738,3.2078,2542.0,2541.9,0.78644]
[1748826548732,3.99421,2542.0,2541.9,0.78644]
[1748826548926,3.2078,2542.0,2541.9,0.78644]
[1748826550828,3.99421,2542.0,2541.8,1.2884]
[1748826551033,3.2078,2542.0,2541.9,0.78644]
[1748826551237,3.99421,2542.0,2541.9,0.78644]
[1748826551440,22.5956,2542.3,2541.9,0.78644]
[1748826551636,2.50641279,2542.2,2541.9,0.78644]
[1748826551836,0.78641,2542.1,2541.9,0.78644]
[1748826552036,0.78638,2542.1,2541.9,0.78644]
[1748826552237,0.78639,2542.1,2542.0,0.78641]
[1748826552538,0.78639,2542.1,2541.9,0.78642]
[1748826552739,0.78639,2542.1,2542.0,0.5]
[1748826553035,0.78639,2542.1,2542.0,1.28641]
[1748826554639,0.78639,2542.1,2542.0,0.5]
[1748826555038,3.2078,2542.3,2542.0,0.5]
[1748826555339,0.78638,2542.1,2542.0,4.345]
[1748826555537,2.09707,2542.2,2542.0,4.345]
[1748826555738,2.09707,2542.2,2542.1,0.78638]
[1748826556141,0.78638,2542.1,2542.0,5.1314]
[1748826556337,0.78638,2542.1,2542.0,4.345]
[1748826556544,0.78638,2542.1,2542.0,0.5]
[1748826558042,1.93769717,2542.1,2542.0,0.5]
[1748826560544,2.15061089,2542.1,2542.0,0.5]
[1748826561045,2.15161393,2542.1,2542.0,0.5]
[1748826561239,2.15161398,2542.1,2542.0,0.5]
[1748826561642,2.15856057,2542.1,2542.0,0.5]
[1748826561943,1.94493743,2542.1,2542.0,0.5]
[1748826562143,2.15858313,2542.1,2542.0,0.5]
[1748826562339,1.94493743,2542.1,2542.0,0.5]
[1748826562738,2.15861514,2542.1,2542.0,0.5]
[1748826563043,2.1586134,2542.1,2542.0,0.5]
[1748826563238,2.15861349,2542.1,2542.0,0.5]
[1748826563440,1.94493743,2542.1,2542.0,0.5]
[1748826565040,2.15861538,2542.1,2542.0,0.5]
[1748826565240,2.15861538,2542.1,2541.4,5.2198]
[1748826565241,0.78657,2541.5,2541.4,5.2198]
[1748826565842,0.78657,2541.5,2541.4,6.0064]
[1748826566043,0.78657,2541.5,2541.4,6.6497]
[1748826566941,0.78657,2541.5,2541.4,5.8631]
[1748826567143,5.17427,2541.5,2541.1,4.63169]
[1748826567346,0.78666,2541.2,2541.1,3.845]
[1748826567540,0.78666,2541.2,2541.1,5.1807]
[1748826568943,0.78669,2541.1,2541.0,0.6601]
[1748826569145,18.79869,2541.1,2541.0,0.6601]
[1748826569347,18.79869,2541.1,2541.0,1.1601]
[1748826569545,19.01229527,2541.1,2541.0,1.1601]
[1748826569745,19.01229704,2541.1,2541.0,1.1601]
[1748826570349,20.10719,2541.1,2541.0,1.1601]
[1748826570545,23.31499,2541.1,2541.0,1.1601]
[1748826570747,23.52842754,2541.1,2541.0,0.5]
[1748826571045,24.68233544,2541.1,2541.0,0.5]
[1748826571247,24.68233842,2541.1,2541.0,0.5]
[1748826571448,24.68233856,2541.1,2541.0,0.5]
[1748826572244,24.46889517,2541.1,2541.0,0.5]
[1748826572841,24.68214252,2541.1,2541.0,0.5]
[1748826573248,29.46889517,2541.1,2541.0,0.5]
[1748826573443,33.31389517,2541.1,2541.0,0.5]
[1748826573645,0.78672,2541.0,2540.9,0.00591168]
[1748826573844,2.16452,2541.0,2540.9,0.00591168]
[1748826574046,8.3183963,2541.0,2540.4,1.9879]
[1748826574355,8.3183963,2541.0,2540.3,7.0528]
[1748826574356,0.78691,2540.4,2540.3,4.63194]
[1748826574652,18.79991,2540.4,2540.3,3.845]
[1748826574949,3.2078,2540.5,2540.4,0.78691]
[1748826575352,3.2078,2540.5,2540.4,2.09251]
[1748826575552,0.00591168,2540.7,2540.6,0.78685]
[1748826577157,0.07069789,2541.1,2541.0,0.78672]
[1748826577457,0.78672,2541.0,2540.9,0.78673]
[1748826577662,0.78672,2541.0,2540.9,1.2685]
[1748826577861,0.78672,2541.0,2540.9,2.70445]
[1748826578051,0.78672,2541.0,2540.9,1.9177]
[1748826578757,0.78672,2541.0,2540.9,2.70445]
[1748826578954,0.85740789,2541.1,2540.9,1.9177]
[1748826579156,0.85740789,2541.1,2541.0,1.3185]
[1748826579655,0.85740789,2541.1,2541.0,2.10522]
[1748826579854,0.07069789,2541.1,2541.0,2.10522]
[1748826580051,0.85738789,2541.1,2541.0,1.3185]
[1748826585558,1.05398789,2541.1,2541.0,1.3185]
[1748826587562,2.2078866,2541.1,2541.0,1.3185]
[1748826589371,0.78672,2541.0,2540.9,0.6492]
[1748826589859,0.78682,2540.7,2540.6,3.845]
[1748826590063,0.78682,2540.7,2540.6,4.4927]
[1748826590553,0.78682,2540.7,2540.6,5.8695]
[1748826591860,0.78688,2540.5,2540.4,0.5]
[1748826592867,0.78694,2540.3,2540.2,0.00591168]
[1748826593061,3.99474,2540.3,2540.2,0.00591168]
[1748826593362,5.15027788,2540.3,2540.2,0.00591168]
[1748826593561,0.78713,2539.7,2539.6,3.2078]
[1748826593763,0.78719,2539.5,2539.4,0.6839]
[1748826593971,0.78718,2539.6,2539.4,1.47112]
[1748826594162,0.78718,2539.6,2539.5,1.3821]
[1748826594665,0.78718,2539.6,2539.5,1.8821]
[1748826595364,3.2078,2539.7,2539.5,1.8821]
[1748826595665,0.78716,2539.6,2539.5,1.8821]
[1748826596058,3.2078,2539.7,2539.5,1.8821]
[1748826596059,3.99494,2539.7,2539.5,2.66927]
[1748826596264,0.78716,2539.6,2539.5,1.8821]
[1748826598259,3.99494,2539.7,2539.5,2.66929]
[1748826598467,22.01794,2539.7,2539.5,2.66929]
[1748826598663,3.2078,2539.7,2539.6,0.78716]
[1748826598862,3.847,2540.3,2539.8,0.78707]
[1748826598863,0.78704,2540.0,2539.8,0.78707]
[1748826599165,0.78704,2540.0,2539.9,1.2994]
[1748826599364,0.78704,2540.0,2539.9,1.9484]
[1748826602071,0.78704,2540.0,2539.9,0.649]
[1748826602269,0.78713,2539.7,2539.6,6.57103]
[1748826602463,0.78713,2539.7,2539.6,2.603]
[1748826602669,0.78713,2539.7,2539.6,1.965]
[1748826603266,0.78713,2539.7,2539.6,0.6671]
[1748826603871,2.14443,2539.7,2539.6,0.6671]
[1748826604372,0.78716,2539.6,2539.5,4.348]
[1748826605271,0.78716,2539.6,2539.5,5.13519]
[1748826606765,3.8437,2539.9,2539.8,0.7871]
[1748826606766,3.99487,2539.9,2539.8,0.7871]
[1748826607067,3.2078,2539.9,2539.8,0.7871]
[1748826607468,2.71370832,2539.9,2539.8,5.7871]
[1748826607774,0.07069789,2540.0,2539.9,0.78706]
[1748826607967,0.07069789,2540.0,2539.9,11.64376]
[1748826608368,0.00591,2540.5,2540.4,0.78691]
[1748826608565,0.00591,2540.5,2540.4,4.63491]
[1748826609566,0.00591,2540.5,2540.4,45.43491]
[1748826610176,0.00591,2540.5,2540.4,48.64271]
[1748826610376,0.79279,2540.5,2540.4,44.0078]
[1748826610574,0.00591,2540.5,2540.4,49.93171]
[1748826610978,0.79279,2540.5,2540.4,49.93171]
[1748826611567,0.20261,2540.5,2540.4,49.93171]
[1748826612877,0.20261,2540.5,2540.4,50.43171]
[1748826615990,0.20261,2540.5,2540.4,47.22391]
[1748826617681,0.20261,2540.5,2540.4,52.22391]
[1748826618393,0.20261,2540.5,2540.4,47.22391]
[1748826619890,0.27330789,2540.5,2540.4,47.22391]
[1748826622490,0.27330789,2540.5,2540.4,52.22391]
[1748826624595,0.27330789,2540.5,2540.4,47.22391]
[1748826625496,0.27330789,2540.5,2540.4,50.43171]
[1748826627101,0.27330789,2540.5,2540.4,55.43171]
[1748826627394,0.6397,2541.3,2541.2,0.78666]
[1748826627599,1.42633,2541.3,2541.2,3.847]
[1748826627791,2.73453,2541.3,2541.2,4.347]
[1748826628397,2.73453,2541.3,2541.2,0.5]
[1748826628795,2.73453,2541.3,2541.2,1.28666]
[1748826628992,2.73453,2541.3,2541.2,0.5]
[1748826630298,2.73453,2541.3,2541.2,1.28666]
[1748826630598,2.73453,2541.3,2541.2,0.5]
[1748826632000,7.73453,2541.3,2541.2,0.5]
[1748826632501,0.78669,2541.1,2541.0,0.00591168]
[1748826632697,18.83769,2541.1,2541.0,0.00591168]
[1748826632887,23.83769,2541.1,2541.0,0.00591168]
[1748826633495,24.99074053,2541.1,2541.0,0.00591168]
[1748826634301,18.83769,2541.1,2541.0,0.00591168]
[1748826634493,1.3265,2541.2,2541.0,0.00591168]
[1748826634691,1.3265,2541.2,2541.1,0.78669]
[1748826635504,2.11316,2541.2,2541.1,4.357]
[1748826635895,1.3265,2541.2,2541.1,5.14369]
[1748826636299,1.49703789,2541.3,2541.2,0.78666]
[1748826636300,0.71039789,2541.3,2541.2,0.78666]
[1748826636805,0.07069789,2541.3,2541.2,2.12896]
[1748826639197,3.2078,2541.6,2541.5,0.78657]
[1748826639405,3.2078,2541.6,2541.5,4.64357]
[1748826639406,1.15643193,2541.6,2541.5,4.64357]
[1748826639604,1.4693,2541.8,2541.6,0.78652]
[1748826639792,1.94255222,2541.7,2541.6,0.78652]
[1748826639999,1.15604222,2541.7,2541.1,4.357]
[1748826640301,0.07069789,2541.3,2541.2,41.58666]
[1748826640506,0.07069789,2541.3,2541.2,43.57376]
[1748826641000,0.07069789,2541.3,2541.2,44.20876]
[1748826641401,0.07069789,2541.3,2541.2,49.20876]
[1748826644398,0.07069789,2541.3,2541.2,44.20876]
[1748826645106,0.07069789,2541.3,2541.2,47.43076]
[1748826645700,0.07069789,2541.3,2541.2,45.44366]
[1748826646311,0.07069789,2541.3,2541.2,46.76546]
[1748826651905,0.27271166,2541.3,2541.2,46.76546]
[1748826654218,0.27271166,2541.3,2541.2,46.76446]
[1748826656612,0.27271166,2541.3,2541.2,47.26446]
[1748826657420,0.6426,2541.8,2541.7,0.78651]
[1748826657919,0.6426,2541.8,2541.6,3.856]
[1748826657920,0.78651,2541.7,2541.6,4.64252]
[1748826658217,2.79541,2541.7,2541.6,45.44252]
[1748826658915,2.79541,2541.7,2541.6,4.64252]
[1748826659212,2.79543,2541.7,2541.6,0.78654]
[1748826660314,0.78655,2541.6,2541.5,0.78654]
[1748826660514,1.324,2541.6,2541.5,0.78654]
[1748826661717,2.11054,2541.6,2541.5,0.78654]
[1748826662215,0.78659,2541.5,2541.4,0.78658]
[1748826662420,2.11059,2541.5,2541.4,0.78658]
[1748826663018,2.11057,2541.5,2541.4,0.78658]
[1748826663319,1.324,2541.5,2541.3,44.668]
[1748826663517,0.78655,2541.6,2541.5,0.78657]
[1748826664114,1.47293,2541.7,2541.6,0.78654]
[1748826664311,19.89062303,2541.7,2541.6,0.78654]
[1748826664922,1.84262303,2541.7,2541.6,0.78654]
[1748826665112,0.6864,2541.7,2541.6,0.78654]
[1748826665620,1.84358244,2541.7,2541.6,0.78654]
[1748826666620,1.84358244,2541.7,2541.6,2.11154]
[1748826666825,1.84358244,2541.7,2541.6,0.78654]
[1748826667619,1.84408563,2541.7,2541.6,0.78654]
[1748826667925,1.15768563,2541.7,2541.6,0.78654]
[1748826668122,1.15768563,2541.7,2541.6,2.11154]
[1748826671424,0.78654,2541.6,2541.5,3.99436]
[1748826671627,0.07069789,2541.6,2541.5,3.99436]
[1748826672224,0.78663,2541.4,2541.3,3.868]
[1748826672728,1.15811744,2541.4,2541.3,0.5]
[1748826673029,1.94471744,2541.4,2541.3,0.5]
[1748826673224,7.17314976,2541.4,2541.3,0.5]
[1748826673424,7.17315558,2541.4,2541.3,0.5]
[1748826673623,7.17301495,2541.4,2541.3,0.5]
[1748826673824,6.94471744,2541.4,2541.3,0.5]
[1748826674027,7.17301492,2541.4,2541.3,0.5]
[1748826674428,6.94471744,2541.4,2541.3,0.5]
[1748826674628,7.17299918,2541.4,2541.3,0.5]
[1748826674929,10.38079918,2541.4,2541.3,0.5]
[1748826675230,10.38080353,2541.4,2541.3,0.5]
[1748826675524,10.38079587,2541.4,2541.3,0.5]
[1748826676029,7.17289013,2541.4,2541.3,0.5]
[1748826676230,7.17173933,2541.4,2541.3,0.5]
[1748826676430,6.9435659,2541.4,2541.3,0.5]
[1748826677726,8.3008659,2541.4,2541.3,0.5]
[1748826680531,7.1439,2541.4,2541.3,0.5]
[1748826680733,8.37011805,2541.4,2541.3,0.5]
[1748826681434,26.59581805,2541.4,2541.3,0.5]
[1748826683433,21.59581805,2541.4,2541.3,0.5]
[1748826684835,20.44029789,2541.4,2541.3,0.5]
[1748826685136,21.59544394,2541.4,2541.3,0.5]
[1748826685730,24.80324394,2541.4,2541.3,0.5]
[1748826686533,6.77424394,2541.4,2541.3,0.5]
[1748826686832,24.79224394,2541.4,2541.3,0.5]
[1748826687038,25.02007932,2541.4,2541.3,0.5]
[1748826687239,25.02008328,2541.4,2541.3,0.5]
[1748826687543,24.23347377,2541.4,2541.0,4.66063168]
[1748826687834,0.78668,2541.2,2541.1,0.78667]
[1748826688030,0.78669,2541.1,2541.0,2.12501168]
[1748826688231,1.15514605,2541.1,2541.0,2.12501168]
[1748826688436,1.94183605,2541.1,2541.0,2.12501168]
[1748826689135,1.94183605,2541.1,2541.0,1.33831168]
[1748826690434,1.94183605,2541.1,2541.0,1.83831168]
[1748826691338,1.94183605,2541.1,2541.0,0.50591168]
[1748826692932,1.94183605,2541.1,2541.0,1.29263168]
[1748826693437,0.78669,2541.1,2541.0,2.58693168]
[1748826693634,1.94179126,2541.1,2541.0,2.58693168]
[1748826694035,1.94179126,2541.1,2541.0,1.80021168]
[1748826695536,0.78669,2541.1,2541.0,2.58693168]
[1748826695736,0.78669,2541.1,2541.0,1.80021168]
[1748826695938,0.85738789,2541.1,2541.0,2.58693168]
[1748826696146,2.0125808,2541.1,2541.0,2.58693168]
[1748826696637,2.0125808,2541.1,2541.0,1.80021168]
[1748826697839,0.85738789,2541.1,2541.0,1.80021168]
[1748826698143,2.0129601,2541.1,2541.0,1.80021168]
[1748826698635,2.01323015,2541.1,2541.0,1.80021168]
[1748826699243,2.01323015,2541.1,2541.0,2.58693168]
[1748826699943,2.01323015,2541.1,2541.0,1.80021168]
[1748826700838,2.01323015,2541.1,2541.0,2.58693168]
[1748826701338,1.22654015,2541.1,2541.0,2.58693168]
[1748826701541,1.22654015,2541.1,2541.0,10.79473168]
[1748826701542,0.07069789,2541.1,2541.0,10.79473168]
[1748826701844,3.4045,2541.4,2541.3,0.78663]
[1748826702037,0.1967,2541.4,2541.3,4.63363]
[1748826702243,0.1967,2541.4,2541.3,7.84143]
[1748826702946,0.1967,2541.4,2541.3,10.35863]
[1748826706040,3.2078,2542.2,2542.1,0.78638]
[1748826706243,3.2078,2542.2,2541.7,3.847]
[1748826706244,0.78638,2542.1,2541.7,3.847]
[1748826706546,1.15504794,2542.0,2541.9,0.78641]
[1748826706746,1.94145794,2542.0,2541.9,2.10291]
[1748826707249,1.15504794,2542.0,2541.9,2.10291]
[1748826707442,1.4276,2542.1,2541.9,2.10291]
[1748826707642,0.78641,2542.0,2541.9,2.10291]
[1748826708245,1.94077684,2542.0,2541.9,2.10291]
[1748826708445,1.42761,2542.1,2542.0,0.78641]
[1748826708647,2.58163812,2542.1,2542.0,0.78641]
[1748826708950,1.42761,2542.1,2542.0,0.78641]
[1748826709254,2.58164234,2542.1,2542.0,0.78641]
[1748826711052,2.58109379,2542.1,2542.0,0.78641]
[1748826711852,3.10198379,2542.1,2542.0,0.78641]
[1748826712046,3.10174983,2542.1,2542.0,0.78641]
[1748826712245,1.79444983,2542.1,2542.0,0.78641]
[1748826712450,0.6412,2542.1,2542.0,0.78641]
[1748826712649,1.42758,2542.1,2542.0,0.78641]
[1748826713851,1.9537,2542.1,2541.8,0.671]
[1748826714151,0.78642,2542.0,2541.9,0.78642]
[1748826714453,2.09892,2542.0,2541.9,0.78642]
[1748826714656,1.3125,2542.0,2541.9,0.78642]
[1748826714956,2.09891,2542.0,2541.9,0.78642]
[1748826717248,2.09891,2542.0,2539.0,12.53723807]
[1748826717249,1.3125,2542.0,2541.3,4.3314]
[1748826717453,0.78657,2541.5,2541.4,3.846]
[1748826717650,0.78666,2541.2,2541.1,3.846]
[1748826717855,0.78668,2541.2,2541.1,0.78669]
[1748826718253,1.3477,2541.3,2541.0,0.00591168]
[1748826718655,2.13434,2541.3,2541.2,0.78666]
[1748826719349,2.13434,2541.3,2541.1,0.78668]
[1748826719548,1.2691,2541.2,2541.1,0.78668]
[1748826719849,1.2691,2541.2,2541.1,1.28668]
[1748826722752,0.07069789,2541.4,2541.3,0.78663]
[1748826723157,0.07069789,2541.4,2541.3,2.07053]
[1748826723560,0.07069789,2541.4,2541.3,0.78663]
[1748826724362,0.6699,2541.5,2541.4,0.7866]
[1748826724661,3.09548379,2541.5,2541.4,0.7866]
[1748826724860,0.78666,2541.2,2541.1,0.5]
[1748826725057,1.2719,2541.4,2541.1,0.5]
[1748826725254,18.015,2541.4,2541.3,0.78663]
[1748826725452,19.95533535,2541.4,2541.3,0.78663]
[1748826725654,21.22723535,2541.4,2541.3,0.78663]
[1748826726862,19.16973535,2541.4,2541.3,0.78663]
[1748826727458,1.15373535,2541.4,2541.3,0.78663]
[1748826727763,0.78661,2541.4,2541.3,0.78661]
[1748826727965,0.78663,2541.3,2541.2,2.78484]
[1748826728264,0.78666,2541.2,2541.1,1.28667]
[1748826728560,1.38739789,2541.2,2541.1,1.28667]
[1748826728761,2.17405789,2541.2,2541.1,1.28667]
[1748826729465,2.17405789,2541.2,2541.1,1.28669]
[1748826730063,1.38739789,2541.2,2541.1,1.28669]
[1748826730465,2.17405789,2541.2,2541.1,0.5]
[1748826730665,1.38739789,2541.2,2541.1,1.28669]
[1748826731859,0.07069789,2541.2,2541.1,1.28669]
[1748826732564,0.07069789,2541.2,2541.1,0.78669]
[1748826732864,0.07069789,2541.2,2541.1,1.28669]
[1748826733165,0.85735789,2541.2,2541.1,1.28669]
[1748826737861,0.78682,2540.7,2540.6,3.846]
[1748826738060,0.78685,2540.6,2540.5,3.99466]
[1748826738268,18.80383,2540.7,2540.6,0.78685]
[1748826738462,18.80384,2540.7,2540.5,3.2078]
[1748826738663,0.78685,2540.6,2540.5,3.99466]